bitfinex-derivatives/quotes_SOLF0:USTF0_20240910
["timestamp","ask_amount","ask_price","bid_price","bid_amount"]
[1726002664218,4.1135,136.18,136.13,3.6726]
[1726002665321,4.1135,136.18,136.12,3.6729]
[1726002666213,4.1135,136.18,136.11,3.6731]
[1726002666526,4.1135,136.18,136.04,6.20488588]
[1726002666527,4.1135,136.18,136.03,7.3508]
[1726002666727,4.1135,136.18,136.03,13.55568588]
[1726002666927,4.1135,136.18,136.1,3.6734]
[1726002669121,4.1135,136.18,136.11,3.6732]
[1726002670222,11.28,136.12,136.11,3.6732]
[1726002670422,11.28,136.12,136.1,3.6734]
[1726002670622,11.28,136.11,136.05,11.28]
[1726002671025,11.28,136.11,136.09,3.6736]
[1726002672521,11.28,136.11,136.1,3.6735]
[1726002673121,4.1135,136.18,136.1,3.6735]
[1726002673321,11.28,136.12,136.1,3.6735]
[1726002675820,11.28,136.12,136.06,11.28]
[1726002675821,11.28,136.12,136.09,3.6737]
[1726002679526,11.28,136.1,136.04,6.20555205]
[1726002679727,11.28,136.1,136.01,3.62136136]
[1726002679728,11.28,136.06,136.02,6.20649046]
[1726002679929,11.28,136.06,136.03,3.6752]
[1726002680526,11.28,136.06,136.04,3.675]
[1726002686732,1.3484,136.09,136.04,3.675]
[1726002688137,1.3484,136.09,136.03,3.6753]
[1726002689234,1.3484,136.09,136.02,3.6755]
[1726002689636,1.3484,136.09,135.8,3.42654668]
[1726002689637,1.3484,136.09,135.98,6.20734452]
[1726002689840,1.3484,136.09,135.99,6.20734452]
[1726002690040,1.3484,136.09,135.94,1.3464]
[1726002690237,1.3484,136.09,135.96,6.20775713]
[1726002690437,1.3484,136.09,136.01,3.6757]
[1726002690836,1.3484,136.09,135.95,10.93976797]
[1726002691040,1.3484,136.09,136.02,3.6756]
[1726002697444,1.3484,136.09,135.95,10.93976797]
[1726002697445,1.3484,136.09,136.03,3.6752]
[1726002697644,1.3484,136.09,135.96,7.3544]
[1726002697848,1.3484,136.09,135.97,6.20779872]
[1726002698052,1.3484,136.09,136.04,3.675]
[1726002698853,1.3484,136.09,135.98,13.56139318]
[1726002699043,1.3484,136.09,135.99,7.48739318]
[1726002699244,1.3484,136.09,136.06,3.6744]
[1726002699651,2.6098,136.11,136.02,6.20779318]
[1726002699851,2.6098,136.11,136.07,3.6742]
[1726002700244,2.6098,136.11,135.99,1.2796]
[1726002700453,2.6098,136.11,136.06,3.6745]
[1726002701056,2.6098,136.11,136.05,3.6747]
[1726002701358,2.6098,136.11,136.0,6.20679089]
[1726002701551,2.6098,136.11,136.01,6.20679089]
[1726002701854,2.6098,136.11,136.02,6.20679089]
[1726002702055,2.6098,136.11,135.99,1.2796]
[1726002702257,2.6098,136.11,136.06,3.6746]
[1726002703857,2.6098,136.11,136.07,3.6743]
[1726002704053,2.6098,136.11,136.03,3.65193974]
[1726002704355,2.6098,136.11,136.0,7.3524]
[1726002704555,2.6098,136.11,136.01,6.20677908]
[1726002704858,2.6098,136.11,136.02,6.20677908]
[1726002705059,2.6098,136.11,136.03,9.84421578]
[1726002705268,2.6098,136.11,136.06,3.6745]
[1726002706958,2.6098,136.11,136.07,3.6742]
[1726002707956,2.6098,136.11,136.06,3.6745]
[1726002710256,2.6098,136.11,136.03,3.69844655]
[1726002710453,2.6098,136.11,136.04,6.17294182]
[1726002710764,2.6098,136.11,136.03,3.65801661]
[1726002710960,2.6098,136.11,136.06,3.6744]
[1726002713867,2.6098,136.11,136.07,3.6743]
[1726002717763,2.6098,136.11,136.08,3.674]
[1726002719265,2.6098,136.11,136.07,3.6742]
[1726002720466,2.6098,136.11,136.03,3.68898713]
[1726002720669,2.6098,136.11,136.04,6.17292222]
[1726002720874,2.6098,136.11,136.0,7.3524]
[1726002721364,2.6098,136.11,136.04,3.6749]
[1726002722069,2.6098,136.11,135.99,1.2796]
[1726002722377,1.3742,136.1,136.0,6.17425184]
[1726002722673,1.3742,136.1,136.02,3.6755]
[1726002727780,1.3742,136.1,135.99,1.2796]
[1726002727978,1.3742,136.1,136.0,6.17476318]
[1726002728279,1.3742,136.1,136.01,3.6757]
[1726002734877,1.3742,136.1,135.99,1.2796]
[1726002735079,1.3742,136.1,135.92,7.3567]
[1726002735080,1.3742,136.1,136.0,6.17477393]
[1726002735386,1.3742,136.1,135.93,1.3574]
[1726002735583,1.3742,136.1,135.99,9.85187252]
[1726002735880,1.3742,136.1,135.99,3.6764]
[1726002742094,1.3742,136.1,135.93,1.3574]
[1726002742293,1.3742,136.1,135.94,6.17673648]
[1726002742489,1.3742,136.1,135.95,6.17673648]
[1726002742689,1.3742,136.1,135.93,1.3574]
[1726002743093,8.7322,136.1,135.93,1.3574]
[1726002743395,8.7322,136.1,135.94,6.17727078]
[1726002743595,25.9150803,136.1,135.93,1.3574]
[1726002743796,8.7322,136.1,135.94,6.17728743]
[1726002743995,8.7322,136.1,135.93,1.3574]
[1726002744699,8.7322,136.1,135.95,3.6776]
[1726002745103,1.09598063,136.09,135.95,3.6776]
[1726002745502,8.7322,136.1,135.95,3.6776]
[1726002746207,1.09598067,136.09,135.95,3.6776]
[1726002746393,8.7322,136.1,135.95,3.6776]
[1726002746600,1.09597575,136.09,135.95,3.6776]
[1726002746904,1.09597575,136.09,135.94,3.6777]
[1726002747103,8.7322,136.1,135.94,3.6777]
[1726002747308,1.09609501,136.09,135.94,3.6777]
[1726002749104,1.09609501,136.09,135.93,5.0354]
[1726002750503,1.09611259,136.08,135.9,6.17779414]
[1726002750704,8.7322,136.1,135.89,1.3787]
[1726002750705,1.09611259,136.07,135.89,1.3787]
[1726002750899,2.47341259,136.06,135.89,1.3787]
[1726002751108,2.42051259,136.05,135.89,1.3787]
[1726002751309,1.09611259,136.04,135.89,1.3787]
[1726002751509,4.73749663,136.04,135.89,1.3787]
[1726002751711,1.3244,136.05,135.89,1.3787]
[1726002751897,7.68363162,136.03,135.89,1.3787]
[1726002752611,11.30147302,136.03,135.89,1.3787]
[1726002756507,1.09589668,136.02,135.89,1.3787]
[1726002756708,1.3745,136.01,135.89,1.3787]
[1726002756903,2.7868,136.01,135.89,1.3787]
[1726002757109,1.3884,136.0,135.88,0.4905]
[1726002758408,1.3884,136.0,135.86,1.3072]
[1726002761312,1.3884,136.0,135.86,4.9872]
[1726002761713,1.3884,136.0,135.86,3.68]
[1726002761914,1.3884,136.0,135.81,6.67127913]
[1726002761915,1.0957579,135.99,135.85,3.6801]
[1726002762116,8.78176535,135.99,135.82,1.2854]
[1726002762418,7.68600745,135.99,135.82,1.2854]
[1726002762610,1.09570119,135.98,135.84,3.6804]
[1726002763010,7.68600745,135.99,135.84,3.6804]
[1726002763318,1.09516354,135.98,135.84,3.6804]
[1726002765019,1.09516354,135.98,135.82,1.2854]
[1726002765913,1.09516354,135.98,135.82,4.9663]
[1726002766520,1.09544419,135.97,135.82,4.9663]
[1726002766719,7.68600745,135.99,135.82,4.9663]
[1726002766914,2.7466,135.96,135.82,4.9663]
[1726002767112,1.4021,135.95,135.82,4.9663]
[1726002767327,5.11758144,135.95,135.82,4.9663]
[1726002768015,5.11758144,135.95,135.82,1.2854]
[1726002769013,5.11758144,135.95,135.81,0.492]
[1726002769219,5.11758144,135.95,135.74,1.3392]
[1726002769420,5.11758144,135.95,135.74,1.8314]
[1726002769631,5.11758144,135.95,135.79,3.6819]
[1726002769822,7.69060773,135.94,135.74,1.8314]
[1726002770020,124.1063313,135.94,135.74,1.8314]
[1726002770323,7.69060773,135.94,135.79,3.6818]
[1726002771119,7.69060773,135.94,135.78,3.6821]
[1726002771517,7.69060773,135.94,135.74,1.8314]
[1726002771724,7.69060773,135.94,135.78,3.682]
[1726002774519,7.69060773,135.94,135.74,1.8314]
[1726002775128,7.69060773,135.94,135.81,3.6814]
[1726002777632,7.69060773,135.94,135.82,3.6811]
[1726002778728,7.69060773,135.94,135.79,3.7514663]
[1726002779033,5.11758144,135.95,135.8,1.8892]
[1726002779234,5.11758144,135.95,135.8,5.62114851]
[1726002779434,5.11758144,135.95,135.8,1.8892]
[1726002779829,5.11758144,135.95,135.85,3.6801]
[1726002781334,5.11758144,135.95,135.84,3.6804]
[1726002785835,5.11758144,135.95,135.83,3.6806]
[1726002786734,5.11758144,135.95,135.84,3.6806]
[1726002788445,5.11758144,135.95,135.83,3.6807]
[1726002789436,5.11758144,135.95,135.84,3.6805]
[1726002793055,5.11758144,135.95,135.83,3.6808]
[1726002793254,5.11758144,135.95,135.8,1.8892]
[1726002793848,1.09648972,135.94,135.83,3.6807]
[1726002794057,116.38000944,135.94,135.83,3.6807]
[1726002795453,116.38000944,135.94,135.8,1.8892]
[1726002795654,1.09640091,135.93,135.8,1.8892]
[1726002796261,1.09640091,135.93,135.81,3.6812]
[1726002796553,1.09640091,135.93,135.8,1.8892]
[1726002796755,1.09640091,135.93,135.8,5.5707]
[1726002797457,1.09635041,135.92,135.8,5.5707]
[1726002797653,116.38000944,135.94,135.8,5.5707]
[1726002797851,116.38000944,135.94,135.8,1.8892]
[1726002797852,1.0963492,135.93,135.8,1.8892]
[1726002798959,1.0963492,135.93,135.81,3.6812]
[1726002799151,1.0963492,135.93,135.8,1.8892]
[1726002799659,1.0963492,135.93,135.82,3.6811]
[1726002800058,1.0963492,135.93,135.8,1.8892]
[1726002800353,1.0963492,135.93,135.81,3.6813]
[1726002801559,1.09684531,135.92,135.81,3.6813]
[1726002801758,116.38000944,135.94,135.81,3.6813]
[1726002801959,2.756,135.91,135.81,3.6813]
[1726002802159,1.3219,135.9,135.81,3.6813]
[1726002803559,1.3219,135.9,135.8,5.5707]
[1726002805756,1.3219,135.9,135.81,3.6814]
[1726002808960,1.3219,135.9,135.8,5.5706]
[1726002809559,1.3219,135.9,135.81,3.6813]
[1726002815572,1.3219,135.9,135.8,5.5707]
[1726002816069,1.3219,135.9,135.8,1.8892]
[1726002820366,1.3219,135.9,135.8,1.3983]
[1726002822767,1.3219,135.9,135.81,3.6813]
[1726002822967,1.3219,135.9,135.8,1.3983]
[1726002823274,1.3219,135.9,135.8,1.8876]
[1726002823465,1.3219,135.9,135.83,3.6807]
[1726002823664,1.3219,135.9,135.8,1.8876]
[1726002824367,1.3219,135.9,135.83,3.6807]
[1726002825477,2.756,135.91,135.84,3.6804]
[1726002827871,2.756,135.91,135.83,3.6807]
[1726002829084,2.756,135.91,135.8,1.8876]
[1726002829377,2.756,135.91,135.81,6.18285091]
[1726002829676,2.756,135.91,135.84,3.6805]
[1726002830372,2.756,135.91,135.83,3.6808]
[1726002834582,2.756,135.91,135.82,3.681]
[1726002834783,2.756,135.91,135.83,6.18255127]
[1726002835080,2.756,135.91,135.8,1.8876]
[1726002835279,2.756,135.91,135.83,3.6807]
[1726002835879,2.756,135.91,135.84,3.6805]
[1726002836383,2.756,135.91,135.8,1.8876]
[1726002836588,2.756,135.91,135.83,3.6807]
[1726002837483,2.756,135.91,135.8,1.8876]
[1726002837684,2.756,135.91,135.81,6.18256231]
[1726002837886,2.756,135.91,135.82,6.18256231]
[1726002838082,2.756,135.91,135.83,6.18256231]
[1726002838282,2.756,135.91,135.8,1.8876]
[1726002838586,2.756,135.91,135.83,3.6807]
[1726002849795,2.756,135.91,135.82,3.681]
[1726002850108,2.756,135.91,135.83,6.18257128]
[1726002850391,2.756,135.91,135.83,3.6808]
[1726002858999,2.756,135.91,135.84,3.6805]
[1726002859194,17.16652969,135.93,135.8,1.8876]
[1726002859398,17.16652969,135.93,135.81,6.18202226]
[1726002859601,17.16652969,135.93,135.82,6.18202226]
[1726002860107,17.16652969,135.93,135.85,3.6801]
[1726002860704,17.16652969,135.93,135.86,3.6799]
[1726002861107,119.02870944,135.94,135.86,3.6799]
[1726002861500,17.14016342,135.93,135.86,3.6799]
[1726002862304,119.02870944,135.94,135.86,3.6799]
[1726002863508,119.02870944,135.94,135.85,3.6802]
[1726002863804,17.14100836,135.93,135.85,3.6802]
[1726002865213,120.31460944,135.94,135.85,3.6802]
[1726002865613,17.13937362,135.93,135.85,3.6802]
[1726002866412,120.31460944,135.94,135.85,3.6802]
[1726002866814,17.13261482,135.93,135.85,3.6802]
[1726002867212,120.31460944,135.94,135.85,3.6802]
[1726002868717,120.31460944,135.94,135.86,3.68]
[1726002869305,120.31460944,135.94,135.87,3.6796]
[1726002869717,117.69390944,135.94,135.87,3.6796]
[1726002870017,117.69390944,135.94,135.8,1.8876]
[1726002870218,117.69390944,135.94,135.81,6.18115102]
[1726002870516,117.69390944,135.94,135.8,1.8876]
[1726002870517,117.69390944,135.94,135.88,3.6795]
[1726002871520,117.69390944,135.94,135.8,1.8876]
[1726002871521,117.69390944,135.94,135.87,3.6796]
[1726002873416,117.69390944,135.94,135.88,3.6795]
[1726002874021,117.69390944,135.94,135.87,3.6796]
[1726002874922,117.69390944,135.94,135.8,1.8876]
[1726002875121,117.69390944,135.94,135.81,6.18115133]
[1726002875122,1.4088,135.93,135.81,6.18115133]
[1726002875322,1.4088,135.93,135.82,6.18115133]
[1726002875622,1.4088,135.93,135.86,3.68]
[1726002881628,1.4088,135.93,135.85,3.6802]
[1726002881833,1.4088,135.93,135.8,1.8876]
[1726002882029,1.4088,135.93,135.81,6.18126986]
[1726002882223,1.4088,135.93,135.86,3.68]
[1726002883129,1.4088,135.93,135.8,1.8876]
[1726002883434,1.4088,135.93,135.81,6.18114108]
[1726002883630,1.4088,135.93,135.86,3.6798]
[1726002895554,1.4088,135.93,135.87,3.6797]
[1726002901141,1.4088,135.93,135.8,1.8876]
[1726002901342,1.4088,135.93,135.81,6.18075562]
[1726002901551,1.4088,135.93,135.8,1.8876]
[1726002901753,11.54811483,136.02,135.92,3.6784]
[1726002902048,1.09361742,136.01,135.92,3.6784]
[1726002902247,1.09361742,136.01,135.93,3.6781]
[1726002902641,18.23036598,136.01,135.89,1.382]
[1726002902845,3.8614,136.02,135.92,3.6782]
[1726002903153,1.09392349,136.01,135.92,3.6782]
[1726002903752,3.8614,136.02,135.92,3.6782]
[1726002904053,1.09383403,136.01,135.92,3.6782]
[1726002904246,3.8614,136.02,135.92,3.6782]
[1726002905255,3.8614,136.02,135.91,3.6785]
[1726002906660,3.8614,136.02,135.92,3.6784]
[1726002907164,3.8614,136.02,135.83,7.3615]
[1726002907365,1.09385871,136.01,135.84,7.47711091]
[1726002907560,1.09385871,136.01,135.85,6.17921091]
[1726002907761,3.8614,136.02,135.9,3.6789]
[1726002908064,1.09384239,136.01,135.9,3.6789]
[1726002909270,1.09384239,136.01,135.9,3.6788]
[1726002910965,1.09384239,136.01,135.91,3.6786]
[1726002911669,1.09384239,136.01,135.9,3.6789]
[1726002911863,1.09374554,136.0,135.9,3.6789]
[1726002912166,3.8614,136.02,135.9,3.6789]
[1726002912366,1.09339975,136.01,135.9,3.6789]
[1726002913369,1.09339975,136.01,135.91,3.6787]
[1726002915768,3.8614,136.02,135.91,3.6787]
[1726002915964,1.09339148,136.01,135.91,3.6787]
[1726002917674,1.09339148,136.01,135.92,3.6783]
[1726002918667,1.09339148,136.01,135.91,3.6785]
[1726002919065,1.4029,136.0,135.91,3.6785]
[1726002919869,1.4029,136.0,135.9,3.6788]
[1726002920065,1.4029,136.0,135.85,0.4902]
[1726002920476,1.09341595,135.99,135.88,3.6794]
[1726002920668,1.09341595,135.99,135.85,0.4902]
[1726002921070,1.09341595,135.99,135.86,6.1800142]
[1726002921270,1.09341595,135.99,135.87,6.1800142]
[1726002921464,1.09341595,135.99,135.85,0.4902]
[1726002921674,1.09341595,135.99,135.89,3.679]
[1726002924578,1.4029,136.0,135.85,0.4902]
[1726002924779,1.4029,136.0,135.86,6.17994869]
[1726002924979,1.4029,136.0,135.87,6.17994869]
[1726002925181,1.4029,136.0,135.88,6.17994869]
[1726002925383,2.5633,136.02,135.89,3.6791]
[1726002925680,1.2919,135.99,135.89,3.6791]
[1726002926874,1.2919,135.99,135.88,3.6794]
[1726002927074,1.2919,135.99,135.85,0.4902]
[1726002927271,1.09292926,135.98,135.86,6.18011357]
[1726002927477,2.681,135.97,135.86,3.6799]
[1726002936075,1.09255099,135.96,135.86,3.6799]
[1726002936281,3.68852981,135.96,135.86,3.6799]
[1726002936581,2.681,135.97,135.86,3.6799]
[1726002936787,1.09254382,135.96,135.86,3.6799]
[1726002936985,4.80021188,135.96,135.86,3.6799]
[1726002937186,3.70766806,135.96,135.86,3.6799]
[1726002937385,2.681,135.97,135.86,3.6799]
[1726002937589,1.09264647,135.96,135.86,3.6799]
[1726002937779,4.70683154,135.96,135.86,3.6799]
[1726002937974,3.61418507,135.96,135.86,3.6799]
[1726002938174,2.681,135.97,135.86,3.6799]
[1726002939884,2.681,135.97,135.84,1.2979]
[1726002939885,1.09276593,135.96,135.84,1.2979]
[1726002940092,3.66828743,135.96,135.84,1.2979]
[1726002940287,2.681,135.97,135.84,1.2979]
[1726002940589,1.09273826,135.96,135.84,1.2979]
[1726002940790,4.69915225,135.96,135.84,1.2979]
[1726002940991,1.09273826,135.95,135.84,1.2979]
[1726002941293,119.9541883,135.95,135.84,1.2979]
[1726002941493,19.63328682,135.94,135.84,1.2979]
[1726002941788,18.54054856,135.94,135.84,1.2979]
[1726002944393,18.54054856,135.94,135.81,3.6813]
[1726002944595,1.09240536,135.93,135.81,5.0805]
[1726002945196,2.6452,135.92,135.81,5.0805]
[1726002947391,2.6452,135.92,135.81,1.3992]
[1726002947597,1.09225967,135.91,135.8,3.6816]
[1726002948094,2.6452,135.92,135.8,3.6816]
[1726002948295,1.09224481,135.91,135.8,3.6816]
[1726002948894,2.6452,135.92,135.8,3.6816]
[1726002949097,1.09221818,135.91,135.8,3.6816]
[1726002952198,10.33494388,135.92,135.79,3.6818]
[1726002952501,1.09224979,135.91,135.79,3.6818]
[1726002956399,10.33494388,135.92,135.79,3.6818]
[1726002956607,1.0922419,135.91,135.79,3.6818]
[1726002958299,1.0922419,135.91,135.77,6.18340392]
[1726002958495,1.0922419,135.91,135.76,1.8699]
[1726002959805,1.0922419,135.91,135.78,3.6821]
[1726002960196,7.6906219,135.9,135.78,3.6821]
[1726002960412,1.4117,135.89,135.76,1.8699]
[1726002960910,1.4117,135.89,135.79,3.6818]
[1726002973126,1.4117,135.89,135.78,3.6821]
[1726002973528,1.4117,135.89,135.79,3.6818]
[1726002974025,11.32,135.8,135.79,3.6818]
[1726002976924,3.77429843,135.84,135.8,3.6816]
[1726002977127,11.32,135.81,135.8,3.6816]
[1726002979733,11.32,135.81,135.79,3.6818]
[1726002979934,11.32,135.8,135.76,1.8699]
[1726002980436,11.32,135.8,135.78,3.682]
[1726002980738,11.32,135.8,135.76,1.8699]
[1726002981531,11.32,135.8,135.79,3.6819]
[1726002990242,11.32,135.8,135.76,1.8699]
[1726002990546,3.72891344,135.84,135.76,1.8699]
[1726002990547,11.32,135.79,135.76,1.8699]
[1726002990747,11.32,135.79,135.77,3.6823]
[1726002994448,11.32,135.78,135.76,5.5525]
[1726002994746,11.32,135.78,135.76,5.0608]
[1726002995653,11.32,135.78,135.76,1.3782]
[1726002996650,11.32,135.78,135.75,3.6829]
[1726002996847,11.32,135.76,135.74,3.6831]
[1726002999849,11.32,135.76,135.75,3.683]
[1726003000241,11.32,135.76,135.75,9.86776931]
[1726003000647,1.3456,135.87,135.75,6.18476931]
[1726003000847,1.3456,135.87,135.73,0.4961]
[1726003001151,11.32,135.77,135.74,6.18474154]
[1726003001451,11.32,135.77,135.75,9.86774154]
[1726003001657,11.32,135.77,135.75,3.683]
[1726003001851,11.32,135.77,135.74,3.6831]
[1726003002054,11.32,135.77,135.75,6.18478047]
[1726003002252,11.32,135.76,135.74,3.6831]
[1726003002447,11.32,135.76,135.75,6.18477785]
[1726003003551,11.32,135.76,135.75,9.86777785]
[1726003006948,11.32,135.76,135.75,9.86757404]
[1726003009650,11.32,135.77,135.76,3.6827]
[1726003009853,11.32,135.77,135.76,9.86727404]
[1726003017060,11.32,135.77,135.76,9.86720981]
[1726003018159,11.32,135.77,135.76,6.18450981]
[1726003021264,11.32,135.77,135.76,4.06110981]
[1726003021463,11.32,135.77,135.69,1.2846]
[1726003021667,11.32,135.73,135.69,1.2846]
[1726003021966,11.32,135.73,135.71,3.6839]
[1726003022162,11.32,135.73,135.67,3.67880089]
[1726003022362,11.32,135.71,135.7,3.6844]
[1726003022564,11.32,135.71,135.66,3.60327975]
[1726003022759,11.32,135.71,135.64,17.70485269]
[1726003023164,11.32,135.71,135.69,3.6845]
[1726003024970,11.32,135.71,135.7,3.6844]
[1726003025464,3.8756,135.8,135.7,3.6844]
[1726003025659,11.32,135.71,135.7,3.6844]
[1726003030964,11.32,135.71,135.64,6.38485269]
[1726003031167,3.8756,135.8,135.64,6.38485269]
[1726003031168,11.32,135.7,135.64,6.38485269]
[1726003032263,11.32,135.7,135.69,3.6846]
[1726003033065,11.32,135.7,135.59,7.3746]
[1726003033375,2.7501,135.73,135.6,1.3808]
[1726003033671,2.7501,135.73,135.63,3.6861]
[1726003033672,11.32,135.64,135.63,3.6861]
[1726003033972,11.32,135.64,135.61,6.13222617]
[1726003034177,11.32,135.64,135.63,3.6862]
[1726003034469,11.32,135.64,135.6,1.3808]
[1726003034672,11.32,135.63,135.6,1.3808]
[1726003035266,11.32,135.63,135.62,3.6865]
[1726003036469,11.32,135.63,135.58,1.3032]
[1726003036470,11.32,135.63,135.61,3.6867]
[1726003037371,11.32,135.65,135.62,3.6865]
[1726003037773,11.32,135.65,135.59,11.32]
[1726003038481,2.7501,135.73,135.59,11.32]
[1726003038674,11.32,135.64,135.59,11.32]
[1726003039073,11.32,135.64,135.63,3.6863]
[1726003039780,11.32,135.64,135.62,3.6864]
[1726003050186,2.7501,135.73,135.59,11.32]
[1726003050381,11.32,135.66,135.59,11.32]
[1726003051085,11.32,135.66,135.64,3.686]
[1726003053678,11.32,135.66,135.65,3.6857]
[1726003054284,11.32,135.67,135.66,3.6855]
[1726003054682,2.7501,135.73,135.63,11.32]
[1726003054887,11.32,135.7,135.63,11.32]
[1726003055384,11.32,135.68,135.63,11.32]
[1726003055782,11.32,135.68,135.66,3.6853]
[1726003057373,2.7501,135.73,135.67,3.6852]
[1726003057674,11.32,135.69,135.67,3.6852]
[1726003059085,11.32,135.69,135.66,3.6853]
[1726003059283,11.32,135.68,135.62,11.32]
[1726003059785,11.32,135.68,135.65,3.6856]
[1726003065383,11.32,135.68,135.66,3.6854]
[1726003066293,11.32,135.68,135.65,3.6856]
[1726003067291,11.32,135.68,135.64,3.6858]
[1726003067494,1.3893,135.67,135.64,3.6858]
[1726003070185,1.3893,135.67,135.65,3.6857]
[1726003071898,1.3893,135.67,135.66,3.6855]
[1726003089807,11.32,135.69,135.66,3.6855]
[1726003090807,1.3826,135.72,135.67,3.685]
[1726003091004,11.32,135.71,135.67,3.685]
[1726003092416,1.3826,135.72,135.64,11.32]
[1726003092616,11.32,135.75,135.68,11.32]
[1726003092818,11.32,135.75,135.69,11.32]
[1726003093124,1.4021,135.77,135.74,3.683]
[1726003093125,12.7221,135.77,135.74,3.683]
[1726003095417,12.7221,135.77,135.66,5.05836953]
[1726003095620,11.32,135.73,135.67,17.44864088]
[1726003095816,11.32,135.73,135.68,6.12864088]
[1726003096122,11.32,135.73,135.69,6.12864088]
[1726003096324,11.32,135.73,135.7,3.6842]
[1726003096714,11.32,135.73,135.67,11.32]
[1726003097018,11.32,135.73,135.68,6.12970023]
[1726003097214,11.32,135.73,135.67,11.32]
[1726003097412,11.32,135.73,135.71,3.6839]
[1726003098529,11.32,135.73,135.66,5.05836953]
[1726003098530,11.32,135.73,135.7,3.6843]
[1726003098719,11.32,135.73,135.67,11.32]
[1726003099117,11.32,135.73,135.66,16.37836953]
[1726003099824,11.32,135.73,135.66,12.6798]
[1726003100327,11.32,135.73,135.67,6.12989334]
[1726003101325,11.32,135.73,135.7,3.6843]
[1726003102227,11.32,135.73,135.71,3.6841]
[1726003103529,1.4021,135.77,135.72,3.6838]
[1726003103720,11.32,135.73,135.66,12.6798]
[1726003104128,11.32,135.73,135.71,3.684]
[1726003105125,11.32,135.73,135.66,1.3598]
[1726003105325,11.32,135.73,135.66,12.6798]
[1726003105521,11.32,135.73,135.66,1.3598]
[1726003105728,11.32,135.72,135.67,6.12982653]
[1726003106028,11.32,135.72,135.66,1.3598]
[1726003106331,11.32,135.72,135.67,6.13028443]
[1726003106523,11.32,135.72,135.66,1.3598]
[1726003106723,11.32,135.72,135.69,3.6845]
[1726003108130,11.32,135.72,135.7,3.6843]
[1726003114045,12.7106,135.73,135.71,3.6841]
[1726003118238,1.3906,135.73,135.72,3.6838]
[1726003118539,11.32,135.74,135.72,3.6838]
[1726003120939,11.32,135.75,135.73,3.6835]
[1726003122542,11.32,135.75,135.72,3.6837]
[1726003131153,1.4021,135.77,135.69,11.32]
[1726003131346,12.7221,135.77,135.7,11.32]
[1726003131646,12.7221,135.77,135.74,3.6831]
[1726003133050,11.32,135.77,135.75,3.6829]
[1726003133250,1.2811,135.78,135.72,11.32]
[1726003133652,1.2811,135.78,135.75,3.6829]
[1726003136954,11.32,135.77,135.74,3.6832]
[1726003140061,11.32,135.77,135.7,11.32]
[1726003140062,11.32,135.77,135.73,3.6834]
[1726003142450,11.32,135.76,135.72,3.6837]
[1726003142653,11.32,135.75,135.69,1.3213]
[1726003145562,11.32,135.75,135.71,3.6839]
[1726003146460,11.32,135.75,135.72,3.6838]
[1726003151070,11.32,135.75,135.69,1.3213]
[1726003151571,11.32,135.75,135.71,3.684]
[1726003152874,1.2811,135.78,135.7,11.32]
[1726003153072,11.32,135.76,135.7,11.32]
[1726003153269,11.32,135.76,135.73,3.6833]
[1726003153463,11.32,135.76,135.7,11.32]
[1726003153863,11.32,135.76,135.71,6.12869506]
[1726003154068,11.32,135.76,135.7,11.32]
[1726003154269,11.32,135.76,135.71,6.12876812]
[1726003154473,11.32,135.76,135.74,3.6833]
[1726003155276,1.2811,135.78,135.74,3.6833]
[1726003155573,11.32,135.77,135.75,3.683]
[1726003160568,1.2811,135.78,135.75,3.683]